Cogmind - Beta 13 @@@ ROGUE MODE // 2024.04.17 @ 07:46:25 Player: m1m1c Result: Destroyed by H-55 Commando with Gauss Rifle Performance ------------- Evolutions (1) 500 Regions Visited (5) 1000 Robots Destroyed (37) 185 Value Destroyed (1046) 1046 Prototype IDs (8) 160 Alien Tech Used (0) 0 Bonus (251) 251 TOTAL SCORE: 3142 Bonus ------- Follower Combat Kills 7 Aligned with FarCom 300 Friendly Fire -56 Cogmind --------- Core Integrity 0/400 Matter 245/300 Energy 267/280 System Corruption 1% Temperature Cool (0) Movement Flying (917) Ox11 Location -9/Exiles Parts ------- > --- POWER (1) -------- Heavy Ion Engine > --- PROPULSION (2) --- Flight Unit Flight Unit > --- UTILITY (4) ------ Huge Storage Unit Signal Interpreter Utility Shielding Trap Reconfigurator > --- WEAPON (2) ------- (None) > --- INVENTORY (25) --- Aluminum Leg Improved Hover Unit Improved Hover Unit Improved Hover Unit Improved Hover Unit Small Storage Unit High-capacity Matter Pod (200) High-capacity Matter Pod (200) Visual Processing Unit Light Armor Plating Light Armor Plating Shield Generator Light EM Pulse Cannon Advanced Beam Cannon Advanced Beam Cannon Mining Laser Plasma Cutter Peak State ------------ > --- POWER ------------ Improved Ion Engine > --- PROPULSION ------- Light Treads Wheel > --- UTILITY ---------- Huge Storage Unit Signal Interpreter Utility Shielding Chronowheel > --- WEAPON ----------- Guided Plasma Cannon Improved Light Cannon > --- INVENTORY -------- Heavy Ion Engine Light Treads Light Treads Light Treads Aluminum Leg Wheel Improved Hover Unit Improved Hover Unit Improved Hover Unit Improved Hover Unit Flight Unit Flight Unit Small Storage Unit High-capacity Matter Pod High-capacity Matter Pod Visual Processing Unit Sensor Array Experimental Sensor Array Light Armor Plating Shield Generator Light EM Pulse Cannon Advanced Beam Cannon Advanced Beam Cannon Mining Laser Plasma Cutter [Rating: 34] Favorites ----------- Power Ion Engine Engine Ion Engine Propulsion Wheel Treads Light Treads Leg Aluminum Leg Wheel Wheel Flight Unit Flight Unit Utility Huge Storage Unit Device Trap Reconfigurator Storage Huge Storage Unit Processor Signal Interpreter Protection Utility Shielding Weapon Beam Cannon Energy Gun EM Pulse Gun Energy Cannon Beam Cannon Ballistic Gun Assault Rifle Ballistic Cannon Improved Light Cannon Launcher Grenade Launcher Special Weapon Mining Laser Build | -11 -10 -10 -9 -9 -9 ------- Run | Yrd Mat Min Mat Min Exi Slots Evolved 2 | . . . 2 . . Power . | . . . . . . Propulsion . | . . . . . . Utility 2 | . . . 2 . . Weapon . | . . . . . . Parts Attached 44 | 2 9 8 14 1 10 Power 3 | . . 1 1 . 1 Engine 3 | . . 1 1 . 1 Core . | . . . . . . Reactor . | . . . . . . Propulsion 19 | 2 2 3 5 1 6 Treads 7 | 2 . . 2 . 3 Leg 2 | . . 2 . . . Wheel 8 | . 2 1 3 1 1 Hover . | . . . . . . Flight 2 | . . . . . 2 Utility 12 | . 3 2 5 . 2 Device 3 | . . 1 . . 2 Storage 3 | . 2 . 1 . . Processor 1 | . . . 1 . . Hackware . | . . . . . . Protection 5 | . 1 1 3 . . Artifact . | . . . . . . Weapon 10 | . 4 2 3 . 1 Energy Gun 1 | . . 1 . . . Energy Cannon 5 | . 1 1 2 . 1 Ballistic Gun . | . . . . . . Ballistic Cannon 2 | . 1 . 1 . . Launcher 1 | . 1 . . . . Special Weapon 1 | . 1 . . . . Impact Weapon . | . . . . . . Slashing Weapon . | . . . . . . Piercing Weapon . | . . . . . . Special Melee Weapon . | . . . . . . Unidentified Prototypes 5 | . . 1 1 . 3 Parts Lost 22 | . 4 2 7 . 9 Power 2 | . . 1 . . 1 Propulsion 12 | . 2 . 4 . 6 Utility 2 | . . . 2 . . Weapon 6 | . 2 1 1 . 2 Highest Loss Streak 5 | . 2 2 4 . 5 To Critical Strikes . | . . . . . . Average Slot Usage (%) 95 | . 85 93 99 100 95 Engine 11 | . 14 14 11 11 10 Treads 8 | . 16 . 6 11 9 Leg 3 | . . 9 4 . . Wheel 10 | . 9 13 10 11 10 Device 1 | . . 2 . . 4 Storage 12 | . 14 14 11 11 11 Processor 7 | . . . 11 11 11 Protection 16 | . 5 11 21 22 17 Energy Gun 2 | . 1 8 1 . . Energy Cannon 11 | . 6 14 13 11 11 Ballistic Gun 3 | . 14 5 . . . Ballistic Cannon 5 | . 1 . 6 11 8 Naked Turns . | . . . . . . Heaviest Build 105 | 14 91 91 100 99 105 Greatest Support 40 | 40 40 20 10 10 40 Greatest Overweight (x) 32 | . 9 9 32 9 10 Average Overweight (x) 8 | . 4 8 9 9 8 Largest Inventory Capacity 25 | 8 25 25 25 25 25 Average Capacity 23 | 8 18 25 25 25 25 Most Carried 25 | 6 9 10 25 24 25 Average Carried 16 | 6 6 7 19 23 23 Final Capacity 25 | 8 25 25 25 25 25 Final Carried 24 | 6 8 10 24 24 17 Class Distribution -------------------- 51% | Mutant 48% | Scavenger-Mutant Dominant Class ---------------- Mutant | -10/Materials Mutant | -10/Mines Scavenger-Mutant | -9/Materials Scavenger-Mutant | -9/Mines Scavenger-Mutant | -9/Exiles Resources | -11 -10 -10 -9 -9 -9 ----------- Run | Yrd Mat Min Mat Min Exi Matter Collected 1387 | 200 63 638 429 57 . Remotely . | . . . . . . Salvage Created 1157 | . 255 141 472 124 165 Parts 72 | . 17 10 25 12 8 Haulers Intercepted 4 | . 1 . 3 . . Recyclers Shooed . | . . . . . . Parts Field Recycled . | . . . . . . Retrieved Matter . | . . . . . . Parts Self-Destructed . | . . . . . . Prevented . | . . . . . . Kills | -11 -10 -10 -9 -9 -9 ------- Run | Yrd Mat Min Mat Min Exi Combat Hostiles Destroyed 30 | . 8 4 9 5 4 Guns 10 | . 7 3 . . . Cannons 19 | . . 1 9 5 4 AOE 1 | . 1 . . . . Classes Destroyed 9 | . 5 . 2 1 1 Worker 1 | . . . 1 . . Builder 1 | . 1 . . . . Hauler 4 | . 1 . 3 . . Watcher 1 | . 1 . . . . Swarmer 6 | . 2 2 . 2 . Grunt 19 | . 6 2 6 2 3 Brawler 1 | . . . . 1 . Sentry 3 | . . . 3 . . Demolisher 1 | . . . . . 1 Best Kill Streak 5 | . 4 3 4 5 4 Combat Bots Only 5 | . 3 3 2 5 4 Max Kills in Single Turn 2 | . 2 1 2 2 1 Gunslinging . | . . . . . . Exploded 1 | . 1 . . . . Melee . | . . . . . . Uniques/NPCs Destroyed . | . . . . . . Combat | -11 -10 -10 -9 -9 -9 -------- Run | Yrd Mat Min Mat Min Exi Hostile Shots Fired 288 | . 71 31 83 12 91 Missed 75 | . 16 10 12 5 32 Damage Taken 2878 | . 631 213 1048 78 908 Core 561 | . 113 43 220 11 174 Absorbed by Shields . | . . . . . . Redirected to Shielding 30 | . . 6 11 . 13 Core Remaining (%) 68 | 100 . 37 . . . Volleys Fired 104 | . 34 13 48 4 5 Largest 2 | . 2 2 2 2 1 Hottest 120 | . 80 100 116 107 120 Shots Fired 174 | . 48 28 85 8 5 Gun 52 | . 34 14 4 . . Cannon 118 | . 10 14 81 8 5 Launcher 4 | . 4 . . . . Special . | . . . . . . Kinetic 72 | . 34 . 34 4 . Thermal 74 | . 10 14 41 4 5 Explosive 4 | . 4 . . . . Electromagnetic 24 | . . 14 10 . . Robot Hit Streak 14 | . 14 6 7 2 7 Robot Miss Streak 4 | . 3 2 4 1 . Penetration Max . | . . . . . . Secondary Targets . | . . . . . . Shots Hit Robots 113 | . 40 15 49 4 5 Core Hits 51 | . 18 6 17 6 4 Critical Kills . | . . . . . . Critical Parts Destroyed . | . . . . . . Critical Strikes 1 | . . . 1 . . Blast 1 | . . . 1 . . Melee Attacks . | . . . . . . Impact . | . . . . . . Slashing . | . . . . . . Piercing . | . . . . . . Sneak Attacks . | . . . . . . Combat Hostiles . | . . . . . . Follow-up Attacks . | . . . . . . Damage Inflicted 2298 | . 767 202 1019 126 184 Guns 515 | . 390 80 45 . . Cannons 1505 | . 106 122 967 126 184 Explosions 271 | . 271 . . . . Melee . | . . . . . . Ramming 7 | . . . 7 . . Kinetic 885 | . 390 . 431 64 . Thermal 946 | . 106 122 472 62 184 Explosive 271 | . 271 . . . . Electromagnetic 189 | . . 80 109 . . Impact . | . . . . . . Slashing . | . . . . . . Piercing . | . . . . . . Highest Corruption 1 | . 1 1 . . 1 Average Corruption 1 | . 1 1 . . 1 Corruption Purged . | . . . . . . Corruption Blocked . | . . . . . . Effects 8 | . 2 6 . . . Message Errors 1 | . . 1 . . . Energy Discharges 1 | . 1 . . . . Parts Fused 1 | . 1 . . . . Data Loss (major) 1 | . . 1 . . . Misfires 3 | . . 3 . . . Weapon Failures 1 | . . 1 . . . Overload Shots . | . . . . . . Overflow Damage . | . . . . . . Projectiles . | . . . . . . Explosions . | . . . . . . Melee . | . . . . . . Knockbacks 1 | . . . 1 . . Impact . | . . . . . . Kinetic 1 | . . . 1 . . Secondary . | . . . . . . Self-Inflicted Damage 60 | . 57 . 3 . . Shots 2 | . 2 . . . . Rammed 1 | . . . 1 . . Targets Rammed 1 | . . . 1 . . Kicked . | . . . . . . Crushed . | . . . . . . Highest Temperature 645 | . 108 195 645 152 336 Average Temperature 131 | . 34 87 168 86 162 Received Heat Transfer 726 | . 198 63 393 36 36 Effects 13 | . . . 12 . 1 Energy Bleed 1 | . . . 1 . . Interference 4 | . . . 4 . . Matter Decay 3 | . . . 3 . . Short Circuit 2 | . . . 1 . 1 Damage (minor) 1 | . . . 1 . . Damage (major) 1 | . . . 1 . . Damage (core) 1 | . . . 1 . . Siege Activations . | . . . . . . Robots Corrupted . | . . . . . . Combat Hostiles . | . . . . . . Parts Fried 1 | . . . 1 . . Impact Corruptions . | . . . . . . Robots Melted . | . . . . . . Combat Hostiles . | . . . . . . Parts Melted 3 | . . 1 . . 2 Heat Transferred 1991 | . 222 259 999 111 400 Parts Sabotaged . | . . . . . . Parts Stolen . | . . . . . . Parts Stripped . | . . . . . . Power Chain Reactions . | . . . . . . Alert | -11 -10 -10 -9 -9 -9 ------- Run | Yrd Mat Min Mat Min Exi Peak Influence 201 | . 201 179 138 133 . Initial 43 | . . 43 . 3 . Average 63 | . 108 55 57 30 . Maximum Alert Level 1 | . 1 . . . . Low Security (%) 99 | 100 98 100 100 100 . Level 1 . | . 1 . . . . Level 2 . | . . . . . . Level 3 . | . . . . . . Level 4 . | . . . . . . Level 5 . | . . . . . . High Security . | . . . . . . Max Security . | . . . . . . Squads Dispatched 4 | . 3 . 1 . . Investigation 1 | . . . 1 . . Extermination . | . . . . . . Reinforcement 3 | . 3 . . . . Assault . | . . . . . . Garrison . | . . . . . . Intercept . | . . . . . . Searches Triggered . | . . . . . . Construction Impeded . | . . . . . . Haulers Reinforced . | . . . . . . Active Scanning Responses . | . . . . . . Cargo Convoy Interrupts . | . . . . . . Stealth | -11 -10 -10 -9 -9 -9 --------- Run | Yrd Mat Min Mat Min Exi Distress Signals 3 | . 2 . 1 . . Communications Jammed . | . . . . . . Distress Signals . | . . . . . . Times Spotted 63 | . 19 6 22 5 11 Peak Tracking Total 6 | . 6 3 3 5 5 Tactical Retreats 2 | . . 1 . 1 . Traps | -11 -10 -10 -9 -9 -9 ------- Run | Yrd Mat Min Mat Min Exi Traps Triggered 1 | . 1 . . . . Indirectly . | . . . . . . Trap Hack Attempts . | . . . . . . Triggered . | . . . . . . Disarmed . | . . . . . . Reprogrammed . | . . . . . . Reused . | . . . . . . Traps Extracted . | . . . . . . Installed . | . . . . . . Triggered . | . . . . . . Machines | -11 -10 -10 -9 -9 -9 ---------- Run | Yrd Mat Min Mat Min Exi Machines Disabled 6 | . 3 . 3 . . Max in Single Turn 1 | . 1 . 1 . . Machines Repaired . | . . . . . . Machines Dismantled . | . . . . . . Machines Sabotaged . | . . . . . . Overloaded Fab Kills . | . . . . . . Hacking | -11 -10 -10 -9 -9 -9 --------- Run | Yrd Mat Min Mat Min Exi Machines Accessed 7 | . 2 . 3 . 2 Terminals 5 | . 2 . 3 . . Fabricators . | . . . . . . Repair Stations . | . . . . . . Recycling Units . | . . . . . . Scanalyzers . | . . . . . . Garrison Access . | . . . . . . Total Hacks 27 | . 5 . 7 . 15 Successful 19 | . 2 . 2 . 15 Failed 8 | . 3 . 5 . . Catastrophic 2 | . 2 . . . . Database Lockouts . | . . . . . . Manual 5 | . 2 . 2 . 1 Terminals 12 | . 5 . 7 . . Fabricators . | . . . . . . Repair Stations . | . . . . . . Recycling Units . | . . . . . . Scanalyzers . | . . . . . . Garrison Access . | . . . . . . Terminal Hacks 19 | . 2 . 2 . 15 Record 15 | . . . . . 15 Prototype ID Bank 1 | . 1 . . . . Recall Investigation 1 | . . . 1 . . Recall Reinforcements 1 | . 1 . . . . Registered Prototypes 1 | . . . 1 . . Fabricator Hacks . | . . . . . . Repair Station Hacks . | . . . . . . Recycling Unit Hacks . | . . . . . . Scanalyzer . | . . . . . . Garrison Access Hacks . | . . . . . . Unauthorized Hacks . | . . . . . . Terminals . | . . . . . . Fabricators . | . . . . . . Repair Stations . | . . . . . . Recycling Units . | . . . . . . Scanalyzers . | . . . . . . Garrison Access . | . . . . . . Data Cores Recovered . | . . . . . . Used . | . . . . . . Hacking Detections 4 | . 1 . 3 . . Full Trace Events 2 | . 1 . 1 . . Feedback Events 1 | . 1 . . . . Corruption 1 | . 1 . . . . Feedback Blocked . | . . . . . . Robot Schematics Acquired . | . . . . . . Robots Built . | . . . . . . Authchips . | . . . . . . Time . | . . . . . . Total Robot Build Rating . | . . . . . . Part Schematics Acquired . | . . . . . . Parts Built . | . . . . . . Authchips . | . . . . . . Time . | . . . . . . Total Part Build Rating . | . . . . . . Parts Repaired . | . . . . . . Time . | . . . . . . Parts Recycled . | . . . . . . Recycled Matter . | . . . . . . Retrieved Matter . | . . . . . . Retrieved Components . | . . . . . . Parts Scanalyzed . | . . . . . . Part Schematics Acquired . | . . . . . . Parts Damaged . | . . . . . . Bothacking | -11 -10 -10 -9 -9 -9 ------------ Run | Yrd Mat Min Mat Min Exi Used RIF Installer . | . . . . . . Robots Hacked . | . . . . . . Non-combat . | . . . . . . Combat . | . . . . . . Robot Hacks Applied . | . . . . . . Relay Couplers Released . | . . . . . . Fabnet Peak Effective % . | . . . . . . Robots Rewired . | . . . . . . Allies Hacked . | . . . . . . Hacks Repelled . | . . . . . . Allies | -11 -10 -10 -9 -9 -9 -------- Run | Yrd Mat Min Mat Min Exi Total Allies 5 | . . 2 . 3 . Largest Group 3 | . . 2 1 3 2 Highest-Rated Group 47 | . . 47 31 40 32 Highest-Rated Ally 31 | . . 31 31 16 16 Total Orders . | . . . . . . Ally Attacks 16 | . . 5 2 8 1 Total Damage 174 | . . 84 42 48 . Kills 1 | . . 1 . . . Allies Corrupted . | . . . . . . Allies Melted . | . . . . . . Intel | -11 -10 -10 -9 -9 -9 ------- Run | Yrd Mat Min Mat Min Exi Robot Analysis Total . | . . . . . . Derelict Logs Recovered 2 | . . 1 . 1 . Drone Launches . | . . . . . . Drone Recoveries . | . . . . . . Exploration | -11 -10 -10 -9 -9 -9 ------------- Run | Yrd Mat Min Mat Min Exi Turns Passed 3404 | 3 552 589 1206 409 645 Spaces Moved 1441 | 1 265 248 463 183 281 Core 1 | . . . 1 . . Treads 94 | 1 83 . . . 10 Legs 2 | . . 2 . . . Wheels 1344 | . 182 246 462 183 271 Hover . | . . . . . . Flight . | . . . . . . Fastest Speed 140 | 160 140 215 215 215 140 Average Speed 208 | 160 168 216 218 215 220 Slowest Speed 1650 | 160 215 400 1650 215 480 Overloaded Moves . | . . . . . . Propulsion Burnouts . | . . . . . . Robots Hopped . | . . . . . . Cave-ins Triggered . | . . . . . . Exploration Rate (%) 41 | 1 51 65 35 37 61 Regions Visited 5 Branch Regions 3 Pre-discovered Areas . | . . . . . . Known Exits Taken 2 | . . . 1 1 . Unknown Exits Taken 3 | 1 1 1 . . . Scrap Searched . | . . . . . . Spaces Dug . | . . . . . . Terrain Destroyed 31 | . 30 . 1 . . Melee . | . . . . . . Projectile 1 | . . . 1 . . AOE 30 | . 30 . . . . Terrain Rammed . | . . . . . . Walls Destroyed . | . . . . . . Machines Disabled . | . . . . . . Actions | -11 -10 -10 -9 -9 -9 --------- Run | Yrd Mat Min Mat Min Exi Total 1688 | 2 322 276 594 192 302 Wait 35 | . 5 . 30 . . Move 1436 | . 264 247 462 182 281 Hop . | . . . . . . Pick Up 42 | . 7 4 27 3 1 Fast Attach 9 | . 3 1 2 . 3 Attach 31 | . 5 6 12 1 7 Detach 10 | . . 4 5 . 1 Swap 4 | 2 1 1 . . . Drop 16 | . 3 . 7 2 4 Fire 104 | . 34 13 48 4 5 Melee . | . . . . . . Ram 1 | . . . 1 . . Kick . | . . . . . . Crush . | . . . . . . Escape Stasis . | . . . . . . Rewire . | . . . . . . Trap . | . . . . . . Miscellaneous . | . . . . . . Route ------- -11/Scrapyard -10/Materials -10/Mines -9/Materials (discovered 3 exits: *Mat / *Min / [*Sto]) -9/Mines (discovered 2 exits: *Mat / *Exi) -9/Exiles History --------- Turn | Location | Event 4 | -11/Scrapyard | Discovered new exit (range 0) 4 | -11/Scrapyard | Entered Materials 310 | -10/Materials | Build established: Mutant 493 | -10/Materials | Discovered new exit (range 13) 504 | -10/Materials | Derelicts attacked the area 556 | -10/Materials | Entered Mines 557 | -10/Mines | Met a Derelict bent on vengeance 700 | -10/Mines | Found a damaged Exp. Sensor Array with a note attached 705 | -10/Mines | Found Prototype Device 705 | -10/Mines | Identified Exp. Sensor Array 820 | -10/Mines | Core integrity fell below 50% 854 | -10/Mines | Learned Materials stockpile data 1134 | -10/Mines | Discovered new exit (range 5) 1145 | -10/Mines | Entered Materials 1145 | -9/Materials | Accompanied by 1 ally 1145 | -9/Materials | Evolved 2 slots: Utility x2 1150 | -9/Materials | Led the pair of lost Derelicts to an unsafe place 1673 | -9/Materials | Lost 4 parts (2n2u) 1900 | -9/Materials | Core integrity fell below 50% 1945 | -9/Materials | Build established: Scavenger-Mutant 2122 | -9/Materials | Discovered new exit (range 3) 2129 | -9/Materials | Identified exit to Materials 2326 | -9/Materials | Discovered new exit (range 11) 2342 | -9/Materials | Discovered new exit (range 15) 2349 | -9/Materials | Identified exit to Mines 2351 | -9/Materials | Entered Mines 2359 | -9/Mines | Assisted by bots powering up and referring to "LRC-V3" 2385 | -9/Mines | Discovered exit to Materials (range 8) 2634 | -9/Mines | Learned 2 Materials zone layouts 2747 | -9/Mines | Deemed a non-threat by the Exiles lab entrance 2749 | -9/Mines | Discovered new exit (range 5) 2758 | -9/Mines | Identified exit to Exiles 2760 | -9/Mines | Entered Exiles 2760 | -9/Exiles | Accompanied by 2 allies 2812 | -9/Exiles | Met 8R-AWN 2849 | -9/Exiles | Met EX-HEX 2911 | -9/Exiles | Met EX-BIN 2935 | -9/Exiles | Aligned with FarCom system 2937 | -9/Exiles | Given EX-Vault access code 3087 | -9/Exiles | Opened EX-Vault 3105 | -9/Exiles | Found Prototype Energy Cannon 3105 | -9/Exiles | Identified Gui. Plasma Cannon 3116 | -9/Exiles | Found Prototype Device 3116 | -9/Exiles | Identified Chronowheel 3116 | -9/Exiles | Activated Chronowheel 3134 | -9/Exiles | Found Prototype Device 3134 | -9/Exiles | Identified Trap Reconfigurator 3187 | -9/Exiles | Exiles lab attacked by MAIN.C 3294 | -9/Exiles | Lost 7 allies 3331 | -9/Exiles | Lost 4 parts (1p2n1w) 3399 | -9/Exiles | Core integrity fell below 20% 3405 | -9/Exiles | Destroyed by H-55 Commando with Gauss Rifle Last Messages --------------- EX-Message Board disabled. Slug penetrates DAS Turret. Lgt. Treads destroyed. Slug penetrates DAS Turret. G-34 Mercenary knocked back. Slug penetrates DAS Turret. H-55 Commando knocked back. Slug penetrates DAS Turret. DAS Turret destroyed. Slug penetrates Machine. Penetrated by Slug. Machine disabled. Slug penetrates Machine. Penetrated by Slug. Lgt. Treads destroyed. G-34 Mercenary suffers critical hit (Destroy). Gui. Plasma Cannon destroyed. Penetrated by Slug. Lgt. Treads destroyed. Penetrated by Slug. Map ----- +----------------------------------------------------+ | ??????????????????????????????????????????#""""""# | | ??????????????????????????????????????????#"""" # | | ??????????????????????????????????????????#""X" | | ??????????????????????????????????????????#" | | ??????????????????????????????????????????#" # | | ??????????????????????????????????????????#""""""# | | ??????????????????????????????????????????##"##### | | ?????????????????????????????????????????? "????? | | ?????????????????????????????????????????"""?????? | | ?????????????????????????????????????????"""?????# | | ?????????????????????????????????????????????????# | | ?????????????????????????????????????????????????# | | ?????????????????????????????????????????????????# | | ?????????????????????????????????????????????????# | | ????????????????????????????????????######???????# | | ????????????????#??????????????????? """#???????# | | ????????????? ?##"??????????????????" """#???????# | | ????????????? #"" ????????????????"" #???????? | | ???????????? ????????????????" #???????? | | ???????????? ???????????????" "#???????? | | ????????????? "?????????????? ""????????? | | ????????????? ##????????????" "?????????# | | ??????????????? #???????????# #????????## | | ?????????????????#"" ######???### ###?######" | | ??????????????????#" ##### # #"###"""""" | | ??????????????????#" @ """""" " " | | ??????????????????#"# "" """ " | | ????????????????????## " | | ?????????????????????### | | ???????????????????????### | | ?????????????????????????## % | | ??????????????????????????## [%[ | | ???????????????????????????##" g %!% | | ????????????????????????????# %["" | | ???????????????????????????##" ### | | ???????????????????????????#"" ""##?? | | ???????????????????????????#" """##??? | | ??????????????????????????#"" % % """##???? | | ??????????????????????????#"" ""#????? | | ??????????????????????????#"" % ###???? | | ??????????????????????????#""" ## | | ??????????????????????????#"" | | ??????????????????????????##"" | | ???????????????????????????#"""" | | ???????????????????????????## | | ????????????????????????????#" " | | ????????????????????????????#"""" "" | | ????????????????????????????#"" ""## | | ?????????????????????????????? """"##? | | ?????????????????????????????""" """#?? | +----------------------------------------------------+ Best States ------------- Heat Dissipation 28 Energy Generation 14 Energy Capacity 280 Matter Stores 480 Matter Capacity 500 Sight Range 16 Robot Scan Range 20 Terrain Scan Density 10 Armor Coverage 225 Utility Shielding 33 Evasion (%) 40 Recoil Reduction 2 Item Schematics ----------------- None Robot Schematics ------------------ None Fabricated ------------ Nothing Alien Tech Used ----------------- None Achievements -------------- None Challenges ------------ None Game ------ Seed SuperchargedWeaponNanovents Manual? 0 Play Time 00:26:00 Cumulative 30.4 hours Start 2024.04.16 @ 21:05:30 End 2024.04.17 @ 07:46:25 Sessions 3 Manual Loads 0 Difficulty Rogue Special Mode None Game No. 88 Rogue 88 Adventurer 0 Explorer 0 Win Type - Total 0 Types 0/0/0/0/0/0/0/0/0 Lore% 18 Gallery% 35 Achievement% 27 Wizard Run 0 Options --------- Layout 1 ASCII 1 Keyboard 0 Movement Arrows Keybinds 1 Fullscreen 1 Font 18/SmallcapsGlow Map View 50x40 Zoom Use 0% Tactical HUD 0 Map Filters NONE Filters NONE Steam 1 RUN: 2182475f-a108-4f19-9df9-04184df2d9b7